fUSD/lending_fUSD_20260122
["ID","MTS","AMOUNT","RATE_DAILY","PERIOD"]
[403043026,1769097041652,-300.0,0.00017809,2]
[403043028,1769097041661,-150.0,0.00017809,2]
[403043030,1769097041671,-500.0,0.00017809,2]
[403043032,1769097041681,-150.0,0.00017809,2]
[403043034,1769097041690,-150.0,0.00017809,2]
[403043036,1769097041700,-500.0,0.00017809,2]
[403043038,1769097041709,-500.0,0.00017809,2]
[403043040,1769097041718,-454.37815092,0.00017841,2]
[403043042,1769097041727,-1199.11112925,0.00017841,2]
[403043044,1769097041737,-2115.37416718,0.00017841,2]
[403043046,1769097041746,-3164.47324189,0.00017841,2]
[403043048,1769097041755,-150.0,0.00017863,2]
[403043050,1769097041764,-150.0,0.00017863,2]
[403043052,1769097041773,-150.0,0.00017863,2]
[403043054,1769097041783,-500.0,0.00017863,2]
[403043056,1769097041792,-201.7333692,0.00017863,2]
[403043058,1769097041801,-500.0,0.00017863,2]
[403043060,1769097041811,-150.0,0.00017863,2]
[403043061,1769097041820,-500.0,0.00017863,2]
[403043064,1769097041830,-500.0,0.00017863,2]
[403043066,1769097041841,-1300.0,0.000179,6]
[403043068,1769097041850,-158.55167782,0.000179,3]
[403043070,1769097041859,-585.8418,0.000179,2]
[403043071,1769097041868,-202.80346107,0.000179,2]
[403043074,1769097041877,-2444.55129717,0.000179,2]
[403043075,1769097041886,-200.0,0.00017918,2]
[403043078,1769097041896,-227.54993751,0.00017918,2]
[403043080,1769097041905,-150.0,0.00017918,2]
[403043081,1769097041915,-500.0,0.00017918,2]
[403043083,1769097041924,-331.44779673,0.00017918,2]
[403043085,1769097041933,-150.0,0.00017918,2]
[403043087,1769097041943,-500.0,0.00017918,2]
[403043090,1769097041952,-360.2469951,0.00017918,2]
[403043092,1769097041961,-465.46,0.00017933,2]
[403043094,1769097041970,-250.0,0.00017973,2]
[403043096,1769097041979,-500.0,0.00017973,2]
[403043097,1769097041988,-211.68383371,0.00017973,2]
[403043100,1769097041998,-500.0,0.00017973,2]
[403043102,1769097042007,-150.0,0.00017973,2]
[403043103,1769097042016,-150.0,0.00017973,2]
[403043105,1769097042025,-500.58,0.00017998,2]
[403043107,1769097042034,-9266.7633111,0.00017999,2]
[403043109,1769097042043,-130975.3740706,0.00017999,2]
[403043112,1769097042052,-300.0,0.00017999,2]
[403043114,1769097042061,-155.0,0.00017999,2]
[403043116,1769097042070,-500.58,0.00017999,2]
[403043118,1769097042078,-500.58,0.00017999,2]
[403043120,1769097042087,-500.58,0.00017999,2]
[403043121,1769097042097,-500.58,0.00017999,2]
[403043123,1769097042106,-500.58,0.00017999,2]
[403043126,1769097042120,-500.58,0.00017999,2]
[403043128,1769097042129,-500.58,0.00017999,2]
[403043129,1769097042138,-500.58,0.00017999,2]
[403043131,1769097042147,-500.58,0.00017999,2]
[403043133,1769097042157,-500.58,0.00017999,2]
[403043135,1769097042166,-500.58,0.00017999,2]
[403043137,1769097042175,-500.58,0.00017999,2]
[403043139,1769097042185,-1793008.46367407,0.00018,2]
[403043141,1769097042194,-714299.01592166,0.00018,2]
[403043143,1769097042203,-60711.58698717,0.00018,2]
[403043145,1769097042211,-380170.31535954,0.00018,2]
[403043147,1769097042221,-468.25,0.00018,2]
[403043149,1769097042230,-468.25,0.00018,2]
[403043150,1769097042239,-468.25,0.00018,2]
[403043151,1769097042248,-468.25,0.00018,2]
[403043152,1769097042257,-468.25,0.00018,2]
[403043153,1769097042266,-468.25,0.00018,2]
[403043154,1769097042276,-556.04,0.00018,2]
[403043155,1769097042285,-420.0,0.00018,2]
[403043156,1769097042295,-457.0,0.0001802,2]
[403043157,1769097042304,-457.0,0.00018022,2]
[403043158,1769097042313,-5703.6539115,0.00018022,2]
[403043159,1769097042322,-500.0,0.00018028,2]
[403043160,1769097042331,-202.25809292,0.00018028,2]
[403043161,1769097042341,-150.0,0.00018028,2]
[403043162,1769097042350,-500.0,0.00018083,2]
[403043163,1769097042360,-150.0,0.00018083,2]
[403043164,1769097042368,-27651.69504898,0.00018088,2]
[403043165,1769097042377,-1680.0,0.0001809,2]
[403043166,1769097042387,-500.0,0.00018137,2]
[403043167,1769097042396,-254.98273767,0.00018137,2]
[403043168,1769097042406,-168.0,0.00018155,2]
[403043169,1769097042415,-500.0,0.00018192,2]
[403043170,1769097042423,-626.0,0.00018206,2]
[403043172,1769097042432,-465.49359082,0.00018207,2]
[403043173,1769097042443,-1010.16650831,0.00018221,2]
[403043175,1769097042453,-457.0,0.00018232,2]
[403043177,1769097042462,-457.0,0.00018241,2]
[403043179,1769097042471,-457.0,0.00018242,2]
[403043181,1769097042480,-500.0,0.00018247,2]
[403043183,1769097042489,-166.66,0.00018276,2]
[403043185,1769097042498,-505.55038648,0.00018302,2]
[403043187,1769097042507,-457.0,0.00018362,2]
[403043189,1769097042516,-457.0,0.00018386,2]
[403043191,1769097042526,-457.0,0.00018437,2]
[403043193,1769097042535,-320.0,0.00018484,2]
[403043194,1769097042544,-1000.0,0.00018572,2]
[403043196,1769097042553,-173.78,0.00018587,2]
[403043198,1769097042562,-168.0,0.00018703,2]
[403043200,1769097042572,-457.0,0.00018721,2]
[403043202,1769097042580,-457.0,0.00018794,2]
[403043203,1769097042590,-152.29,0.000188,2]
[403043204,1769097042599,-152.29,0.000188,2]
[403043205,1769097042608,-152.29,0.000188,2]
[403043206,1769097042616,-152.29,0.000188,2]
[403043208,1769097042625,-152.29,0.000188,2]
[403043210,1769097042633,-152.29,0.000188,2]
[403043211,1769097042642,-152.29,0.000188,2]
[403043212,1769097042651,-152.29,0.000188,2]
[403043213,1769097042660,-152.29,0.000188,2]
[403043214,1769097042669,-152.29,0.000188,2]
[403043215,1769097042678,-152.29,0.000188,2]
[403043216,1769097042687,-152.29,0.000188,2]
[403043217,1769097042697,-152.29,0.000188,2]
[403043218,1769097042706,-152.29,0.000188,2]
[403043219,1769097042715,-152.29,0.000188,2]
[403043220,1769097042725,-152.29,0.000188,2]
[403043221,1769097042738,-152.29,0.000188,2]
[403043222,1769097042749,-152.29,0.000188,2]
[403043223,1769097042758,-152.29,0.000188,2]
[403043224,1769097042766,-152.29,0.000188,2]
[403043225,1769097042775,-152.29,0.000188,2]
[403043226,1769097042783,-152.29,0.000188,2]
[403043227,1769097042793,-152.29,0.000188,2]
[403043228,1769097042802,-168.0,0.00018807,2]
[403043229,1769097042812,-166.66,0.00018842,2]
[403043230,1769097042821,-457.0,0.00018896,2]
[403043231,1769097042830,-150.84024874,0.000189,2]
[403043232,1769097042841,-457.0,0.000189,2]
[403043233,1769097042850,-457.0,0.00018948,2]
[403043234,1769097042859,-168.0,0.00018977,2]
[403043235,1769097042868,-168.0,0.00018984,2]
[403043236,1769097042876,-152.29,0.0001905,2]
[403043237,1769097042886,-151.0,0.0001906,2]
[403043238,1769097042896,-151.0,0.0001906,2]
[403043239,1769097042906,-151.0,0.0001906,2]
[403043240,1769097042915,-151.0,0.0001906,2]
[403043241,1769097042923,-27651.69504898,0.0001906,2]
[403043242,1769097042932,-200.39976832,0.00019082,2]
[403043243,1769097042942,-500.0,0.00019178,2]
[403043244,1769097042950,-384.41392815,0.00019178,2]
[403043245,1769097042959,-500.0,0.00019178,2]
[403043246,1769097042968,-500.0,0.00019178,2]
[403043248,1769097042978,-500.0,0.00019178,2]
[403043250,1769097042987,-500.0,0.00019178,2]
[403043252,1769097042996,-500.0,0.00019178,2]
[403043254,1769097043005,-500.0,0.00019178,2]
[403043256,1769097043014,-150.33,0.00019178,30]
[403043258,1769097043024,-480.7486,0.00019178,2]
[403043259,1769097043033,-480.7486,0.00019178,2]
[403043260,1769097043041,-480.7486,0.00019178,2]
[403043261,1769097043050,-480.7486,0.00019178,2]
[403043262,1769097043059,-155.962319,0.00019178,2]
[403043263,1769097043068,-1926.1,0.00019228,2]
[403043264,1769097043077,-166.66,0.00019408,2]
[403043265,1769097043086,-168.0,0.00019427,2]
[403043266,1769097043096,-250.0,0.00019515,2]
[403043267,1769097043105,-587.0,0.0001967,2]
[403043268,1769097043115,-155.0,0.00019799,2]
[403043269,1769097043131,-9266.7633111,0.00019814,2]
[403043271,1769097043140,-2351.0,0.00019867,2]
[403043272,1769097043150,-4920.60634144,0.000199,3]
[403043273,1769097043159,-166.66,0.00019974,2]
[403043274,1769097043168,-27651.69504898,0.00020033,2]
[403043275,1769097043176,-151.0,0.00020314,2]
[403043276,1769097043187,-151.0,0.00020314,2]
[403043277,1769097043201,-151.0,0.00020314,2]
[403043279,1769097043210,-151.0,0.00020314,2]
[403043280,1769097043219,-151.0,0.00020314,2]
[403043281,1769097043228,-29224.5561918,0.00020314,2]
[403043282,1769097043237,-320.0,0.00020537,2]
[403043284,1769097043246,-154.13,0.00020548,2]
[403043285,1769097043255,-1194.73,0.00020548,2]
[403043286,1769097043264,-167.680365,0.00020548,2]
[403043287,1769097043274,-167.680365,0.00020548,2]
[403043288,1769097043283,-167.680365,0.00020548,2]
[403043289,1769097043292,-167.680365,0.00020548,2]
[403043290,1769097043302,-1000.0,0.00020636,2]
[403043291,1769097043311,-6198.4532229,0.00020771,2]
[403043293,1769097043320,-6520.8799033,0.00020831,2]
[403043295,1769097043330,-150.0,0.000209,7]
[403043296,1769097043339,-27651.69504898,0.00021005,2]
[403043298,1769097043349,-1926.1,0.0002139,2]
[403043300,1769097043358,-500.58,0.00021469,2]
[403043302,1769097043367,-354.88450969,0.00021469,2]
[403043303,1769097043376,-823.0,0.00021496,2]
[403043304,1769097043385,-155.0,0.00021599,2]
[403043305,1769097043394,-152.29,0.0002162,2]
[403043306,1769097043403,-9266.7633111,0.0002163,2]
[403043307,1769097043412,-3292.0,0.0002182,2]
[403043308,1769097043421,-4281.6411,0.00021841,7]
[403043309,1769097043430,-151.0,0.00021918,2]
[403043310,1769097043439,-151.0,0.00021918,2]
[403043311,1769097043448,-151.0,0.00021918,2]
[403043312,1769097043457,-169.39165,0.00021918,2]
[403043313,1769097043466,-151.0,0.00021918,2]
[403043314,1769097043476,-27651.69504898,0.00021978,2]
[403043315,1769097043485,-152.29,0.0002199,2]
[403043316,1769097043493,-417.84617864,0.00021999,2]
[403043317,1769097043503,-500.58,0.00021999,2]
[403043318,1769097043511,-220547.48,0.00022,2]
[403043319,1769097043520,-160.64543439,0.00022137,2]
[403043320,1769097043529,-200.0,0.00022266,2]
[403043321,1769097043538,-152.29,0.00022288,2]
[403043322,1769097043547,-500.0,0.00022298,2]
[403043323,1769097043556,-500.0,0.00022298,2]
[403043324,1769097043565,-500.0,0.00022298,2]
[403043325,1769097043575,-500.0,0.00022298,2]
[403043326,1769097043583,-500.0,0.00022298,2]
[403043327,1769097043593,-500.0,0.00022298,2]
[403043328,1769097043602,-500.0,0.00022298,2]
[403043329,1769097043611,-500.0,0.00022298,2]
[403043330,1769097043621,-151.0,0.00022298,2]
[403043331,1769097043630,-500.0,0.00022298,2]
[403043332,1769097043639,-500.0,0.00022298,2]
[403043333,1769097043648,-151.0,0.00022298,2]
[403043334,1769097043658,-500.0,0.00022298,2]
[403043335,1769097043667,-500.0,0.00022298,2]
[403043336,1769097043676,-151.0,0.00022298,2]
[403043337,1769097043685,-500.0,0.00022298,2]
[403043338,1769097043695,-500.0,0.00022298,2]
[403043339,1769097043704,-500.0,0.00022298,2]
[403043340,1769097043713,-500.0,0.00022298,2]
[403043341,1769097043723,-151.0,0.00022298,2]
[403043342,1769097043732,-500.0,0.00022298,2]
[403043344,1769097043745,-500.0,0.00022298,2]
[403043346,1769097043755,-151.0,0.00022298,2]
[403043348,1769097043764,-500.0,0.00022298,2]
[403043350,1769097043773,-151.0,0.00022298,2]
[403043352,1769097043783,-500.0,0.00022298,2]
[403043354,1769097043792,-500.0,0.00022298,2]
[403043356,1769097043801,-151.0,0.00022298,2]
[403043357,1769097043811,-500.0,0.00022298,2]
[403043358,1769097043820,-500.0,0.00022298,2]
[403043359,1769097043829,-151.0,0.00022298,2]
[403043360,1769097043838,-500.0,0.00022298,2]
[403043375,1769097044059,-151.0,0.00022298,2]
[403043376,1769097044069,-151.0,0.00022298,2]
[403043377,1769097044078,-151.0,0.00022298,2]
[403043378,1769097044089,-151.0,0.00022298,2]
[403043379,1769097044099,-500.0,0.00022298,2]
[403043380,1769097044108,-500.0,0.00022298,2]
[403043381,1769097044120,-500.0,0.00022298,2]
[403043382,1769097044131,-500.0,0.00022298,2]
[403043383,1769097044141,-500.0,0.00022298,2]
[403043384,1769097044150,-500.0,0.00022298,2]
[403043385,1769097044159,-500.0,0.00022298,2]
[403043386,1769097044170,-500.0,0.00022298,2]
[403043387,1769097044180,-500.0,0.00022298,2]
[403043388,1769097044191,-500.0,0.00022298,2]
[403043389,1769097044201,-500.0,0.00022298,2]
[403043390,1769097044211,-500.0,0.00022298,2]
[403043391,1769097044220,-500.0,0.00022298,2]
[403043392,1769097044229,-500.0,0.00022298,2]
[403043393,1769097044239,-162.73600609,0.00022387,2]
[403043394,1769097044248,-320.0,0.00022591,2]
[403043395,1769097044257,-1000.0,0.00022699,2]
[403043396,1769097044266,-27651.69504898,0.0002295,2]
[403043397,1769097044275,-53665.68895819,0.00023,2]
[403043398,1769097044285,-1000.0,0.00023,30]
[403043399,1769097044294,-844.07,0.00023,15]
[403043400,1769097044303,-3210.0,0.00023288,2]
[403043401,1769097044312,-1110.78842872,0.00023288,2]
[403043402,1769097044322,-1963.25702748,0.00023291,2]
[403043403,1769097044331,-9266.7633111,0.00023445,2]
[403043404,1769097044341,-1152.0,0.00023491,2]
[403043405,1769097044351,-1926.1,0.00023553,2]
[403043406,1769097044361,-152.29,0.00023913,2]
[403043407,1769097044371,-27651.69504898,0.00023923,2]
[403043408,1769097044385,-4598.0,0.00023964,2]
[403043409,1769097044394,-1000.0,0.00024,20]
[403043410,1769097044404,-468.25,0.00024082,2]
[403043411,1769097044415,-6198.4532229,0.00024188,2]
[403043412,1769097044424,-170.23,0.000243,7]
[403043413,1769097044434,-161.25,0.00024316,2]
[403043414,1769097044443,-320.0,0.00024645,2]
[403043415,1769097044453,-3210.0,0.00024657,2]
[403043416,1769097044463,-1000.0,0.00024658,2]
[403043417,1769097044473,-651.41,0.00024658,2]
[403043418,1769097044482,-150.0,0.00024658,2]
[403043419,1769097044492,-1000.0,0.00024763,2]
[403043420,1769097044501,-500.0,0.00024873,2]
[403043421,1769097044510,-500.0,0.00024873,2]
[403043422,1769097044520,-500.0,0.00024873,2]
[403043423,1769097044529,-500.0,0.00024873,2]
[403043424,1769097044539,-500.0,0.00024873,2]
[403043425,1769097044549,-500.0,0.00024873,2]
[403043426,1769097044560,-500.0,0.00024873,2]
[403043427,1769097044571,-500.0,0.00024873,2]
[403043428,1769097044581,-500.0,0.00024873,2]
[403043429,1769097044595,-500.0,0.00024873,2]
[403043430,1769097044605,-500.0,0.00024873,2]
[403043431,1769097044616,-500.29132853,0.00024873,2]
[403043432,1769097044627,-500.0,0.00024873,2]
[403043433,1769097044636,-500.0,0.00024873,2]
[403043434,1769097044646,-160.46938346,0.00024873,2]
[403043435,1769097044656,-500.0,0.00024873,2]
[403043436,1769097044666,-150.0,0.00024873,2]
[403043437,1769097044677,-500.0,0.00024873,2]
[403043438,1769097044687,-500.0,0.00024873,2]
[403043439,1769097044696,-500.0,0.00024873,2]
[403043440,1769097044707,-500.44726884,0.00024873,2]
[403043441,1769097044717,-150.0,0.00024873,2]
[403043442,1769097044727,-500.0,0.00024873,2]
[403043443,1769097044736,-249.975,0.00024873,2]
[403043444,1769097044746,-500.0,0.00024873,2]
[403043445,1769097044756,-500.0,0.00024873,2]
[403043446,1769097044766,-583.46387511,0.00024873,2]
[403043447,1769097044776,-500.0,0.00024873,2]
[403043448,1769097044785,-500.0,0.00024873,2]
[403043449,1769097044796,-500.0,0.00024873,2]
[403043450,1769097044805,-574.17089799,0.00024873,2]
[403043451,1769097044815,-500.0,0.00024873,2]
[403043452,1769097044825,-500.0,0.00024873,2]
[403043453,1769097044834,-389.45608517,0.00024873,2]
[403043454,1769097044848,-500.0,0.00024873,2]
[403043455,1769097044858,-500.0,0.00024873,2]
[403043456,1769097044868,-500.0,0.00024873,2]
[403043457,1769097044878,-500.0,0.00024873,2]
[403043458,1769097044889,-500.86844017,0.00024873,2]
[403043459,1769097044899,-500.0,0.00024873,2]
[403043460,1769097044908,-500.0,0.00024873,2]
[403043461,1769097044918,-264.2813588,0.00024873,2]
[403043462,1769097044927,-500.0,0.00024873,2]
[403043463,1769097044936,-500.0,0.00024873,2]
[403043464,1769097044946,-500.0,0.00024873,2]
[403043465,1769097044955,-500.0,0.00024873,2]
[403043466,1769097044964,-500.0,0.00024873,2]
[403043467,1769097044974,-500.0,0.00024873,2]
[403043468,1769097044984,-500.0,0.00024873,2]
[403043469,1769097044993,-500.0,0.00024873,2]
[403043470,1769097045003,-500.0,0.00024873,2]
[403043471,1769097045012,-27651.69504898,0.00024895,2]
[403043472,1769097045022,-361085.211745,0.000249,2]
[403043473,1769097045031,-500.58,0.00024999,2]
[403043474,1769097045041,-500.58,0.00024999,2]
[403043475,1769097045050,-500.58,0.00024999,2]
[403043476,1769097045059,-500.58,0.00024999,2]
[403043477,1769097045069,-500.67285189,0.00024999,2]
[403043478,1769097045078,-220547.48,0.00025,2]
[403043479,1769097045087,-1000.0,0.00025,30]
[403043480,1769097045097,-650.08899016,0.00025,2]
[403043481,1769097045107,-480.7486,0.00025,7]
[403043482,1769097045117,-480.7486,0.00025,7]
[403043483,1769097045129,-480.7486,0.00025,7]
[403043484,1769097045139,-480.7486,0.00025,7]
[403043485,1769097045148,-1000.0,0.00025421,2]
[403043486,1769097045159,-1000.0,0.00025421,2]
[403043487,1769097045169,-1000.0,0.00025421,2]
[403043488,1769097045179,-1000.0,0.00025421,2]
[403043489,1769097045189,-1000.0,0.00025421,2]
[403043490,1769097045200,-1000.0,0.00025421,2]
[403043491,1769097045209,-1000.0,0.00025421,2]
[403043492,1769097045218,-1000.0,0.00025421,2]
[403043493,1769097045227,-1000.0,0.00025421,2]
[403043494,1769097045236,-1000.0,0.00025421,2]
[403043495,1769097045246,-1000.0,0.00025421,2]
[403043496,1769097045255,-692.16316625,0.00025421,2]
[403043497,1769097045264,-1000.0,0.00025421,2]
[403043498,1769097045273,-150.0,0.00025421,2]
[403043499,1769097045282,-1000.0,0.00025421,2]
[403043500,1769097045291,-1000.0,0.00025421,2]
[403043501,1769097045301,-1000.0,0.00025421,2]
[403043502,1769097045310,-250.0,0.00025421,2]
[403043503,1769097045319,-1000.0,0.00025421,2]
[403043504,1769097045329,-1000.0,0.00025421,2]
[403043505,1769097045338,-1000.0,0.00025421,2]
[403043506,1769097045347,-1000.0,0.00025421,2]
[403043507,1769097045356,-1000.0,0.00025421,2]
[403043508,1769097045365,-1000.0,0.00025421,2]
[403043509,1769097045374,-503.53038109,0.00025421,2]
[403043510,1769097045383,-1000.0,0.00025421,2]
[403043511,1769097045392,-1000.0,0.00025421,2]
[403043512,1769097045402,-1000.0,0.00025421,2]
[403043513,1769097045411,-591.27334133,0.00025421,2]
[403043514,1769097045420,-1000.0,0.00025421,2]
[403043515,1769097045430,-1000.0,0.00025421,2]
[403043516,1769097045439,-1000.0,0.00025421,2]
[403043517,1769097045449,-562.63678791,0.00025421,2]
[403043518,1769097045459,-1000.0,0.00025421,2]
[403043519,1769097045468,-1000.0,0.00025421,2]
[403043520,1769097045477,-1000.0,0.00025421,2]
[403043521,1769097045488,-1000.0,0.00025421,2]
[403043522,1769097045497,-1000.0,0.00025421,2]
[403043523,1769097045506,-1000.0,0.00025421,2]
[403043524,1769097045515,-1000.0,0.00025421,2]
[403043525,1769097045524,-1000.0,0.00025421,2]
[403043526,1769097045533,-348.0,0.00025671,2]
[403043527,1769097045542,-1926.1,0.00025715,2]
[403043528,1769097045551,-354.88450969,0.00025824,2]
[403043529,1769097045561,-27651.69504898,0.00025868,2]
[403043530,1769097045570,-1500.0,0.00025968,2]
[403043531,1769097045579,-1500.0,0.00025968,2]
[403043532,1769097045588,-1440.38824472,0.00025968,2]
[403043533,1769097045597,-1500.0,0.00025968,2]
[403043534,1769097045607,-1500.0,0.00025968,2]
[403043535,1769097045616,-1500.0,0.00025968,2]
[403043536,1769097045626,-630.30097829,0.00025968,2]
[403043537,1769097045635,-1500.0,0.00025968,2]
[403043538,1769097045644,-300.0345526,0.00025968,2]
[403043539,1769097045653,-1500.0,0.00025968,2]
[403043540,1769097045663,-1500.0,0.00025968,2]
[403043541,1769097045672,-325.63581608,0.00025968,2]
[403043542,1769097045682,-236.97822393,0.00025968,2]
[403043543,1769097045691,-1004.82245804,0.00025968,2]
[403043544,1769097045700,-1074.55972892,0.00025968,2]
[403043545,1769097045709,-873.13604917,0.00025968,2]
[403043546,1769097045719,-401.18379417,0.00025968,2]
[403043547,1769097045728,-1500.0,0.00025968,2]
[403043548,1769097045737,-1122.45048123,0.00025968,2]
[403043549,1769097045746,-1500.0,0.00025968,2]
[403043550,1769097045755,-1500.0,0.00025968,2]
[403043551,1769097045765,-1500.0,0.00025968,2]
[403043552,1769097045774,-1399.63282818,0.00025968,2]
[403043553,1769097045783,-1285.54220814,0.00025968,2]
[403043554,1769097045793,-1500.0,0.00025968,2]
[403043555,1769097045802,-1500.0,0.00025968,2]
[403043556,1769097045812,-1500.0,0.00025968,2]
[403043557,1769097045821,-1500.0,0.00025968,2]
[403043558,1769097045830,-1500.0,0.00025968,2]
[403043559,1769097045840,-1500.0,0.00025968,2]
[403043560,1769097045849,-1500.0,0.00025968,2]
[403043561,1769097045859,-1500.0,0.00025968,2]
[403043562,1769097045868,-1500.0,0.00025968,2]
[403043563,1769097045878,-191.58643206,0.00025968,2]
[403043564,1769097045887,-1500.0,0.00025968,2]
[403043565,1769097045896,-1500.0,0.00025968,2]
[403043566,1769097045905,-519.21392851,0.00025968,2]
[403043567,1769097045914,-407.1377638,0.00025968,2]
[403043568,1769097045924,-216.13676815,0.00026,2]
[403043569,1769097045934,-3210.0,0.00026026,2]
[403043570,1769097045942,-1000.0,0.00026027,2]
[403043571,1769097045952,-3474.0,0.00026131,2]
[403043572,1769097045962,-615.0,0.00026131,2]
[403043573,1769097045971,-1407.0,0.00026131,2]
[403043574,1769097045980,-1332.0,0.00026131,2]
[403043575,1769097045989,-184.0,0.00026131,2]
[403043576,1769097045998,-1268.0,0.00026131,2]
[403043577,1769097046008,-915.0,0.00026131,2]
[403043578,1769097046017,-1203.0,0.00026131,2]
[403043579,1769097046027,-6565.0,0.00026131,2]
[403043580,1769097046037,-2441.0,0.00026131,2]
[403043581,1769097046046,-567.0,0.00026131,2]
[403043582,1769097046055,-29729.16767647,0.000263,2]
[403043583,1769097046065,-1000.0,0.00026301,2]
[403043584,1769097046076,-27429.93578407,0.000264,2]
[403043585,1769097046085,-1390.41015708,0.00026516,2]
[403043586,1769097046095,-2000.0,0.00026516,2]
[403043587,1769097046105,-2008.90767806,0.00026516,2]
[403043588,1769097046115,-2000.0,0.00026516,2]
[403043589,1769097046127,-2000.0,0.00026516,2]
[403043590,1769097046137,-2000.0,0.00026516,2]
[403043591,1769097046146,-2000.0,0.00026516,2]
[403043592,1769097046155,-171.1048523,0.00026516,2]
[403043593,1769097046166,-2000.0,0.00026516,2]
[403043594,1769097046175,-2000.0,0.00026516,2]
[403043595,1769097046184,-366.80509651,0.00026516,2]
[403043596,1769097046196,-610.34674443,0.00026516,2]
[403043597,1769097046205,-1163.33689384,0.00026516,2]
[403043598,1769097046214,-2000.0,0.00026516,2]
[403043599,1769097046223,-1672.34199579,0.00026516,2]
[403043600,1769097046232,-2000.0,0.00026516,2]
[403043601,1769097046241,-2000.0,0.00026516,2]
[403043602,1769097046251,-2000.0,0.00026516,2]
[403043603,1769097046260,-2000.0,0.00026516,2]
[403043604,1769097046269,-2004.13957622,0.00026516,2]
[403043605,1769097046278,-2000.0,0.00026516,2]
[403043606,1769097046286,-2000.0,0.00026516,2]
[403043607,1769097046296,-1399.06177826,0.00026516,2]
[403043608,1769097046305,-150.33,0.00026554,30]
[403043609,1769097046315,-1000.0,0.00026575,2]
[403043610,1769097046324,-1000.0,0.00026849,2]
[403043611,1769097046334,-200.0,0.000269,9]
[403043612,1769097046344,-250.0,0.00027,2]
[403043613,1769097046353,-1032.4381348,0.00027,2]
[403043614,1769097046363,-530.0,0.00027,2]
[403043615,1769097046372,-1287.82,0.00027,7]
[403043616,1769097046381,-1762.50670829,0.00027064,2]
[403043617,1769097046467,-2500.0,0.00027064,2]
[403043618,1769097046476,-2500.0,0.00027064,2]
[403043619,1769097046486,-1005.63014816,0.00027064,2]
[403043620,1769097046495,-365.66665395,0.00027064,2]
[403043621,1769097046504,-2500.0,0.00027064,2]
[403043622,1769097046514,-2500.0,0.00027064,2]
[403043623,1769097046523,-477.5083774,0.00027064,2]
[403043624,1769097046532,-1528.6445212,0.00027064,2]
[403043625,1769097046542,-1038.06736554,0.00027064,2]
[403043626,1769097046551,-510.54803012,0.00027064,2]
[403043627,1769097046561,-2500.0,0.00027064,2]
[403043628,1769097046570,-2500.0,0.00027064,2]
[403043629,1769097046579,-1698.61326029,0.00027064,2]
[403043631,1769097046588,-1000.0,0.00027123,2]
[403043633,1769097046598,-3680.88,0.00027123,2]
[403043635,1769097046608,-150.0,0.00027123,2]
[403043637,1769097046617,-150.0,0.00027369,2]
[403043639,1769097046627,-340.28293529,0.0002737,2]
[403043640,1769097046636,-4103.62342215,0.0002739,2]
[403043642,1769097046645,-8105.72507762,0.0002739,2]
[403043644,1769097046654,-3210.0,0.00027395,2]
[403043646,1769097046664,-151.0,0.00027397,7]